{"text_format":"3","workbook":"xlsx","n_sheets":4,"sheets":["TENDER COVER PAGE","Preamble","Summary","HYDROCARBON SPILL & OIL DAM CLE"],"not_rendered":{"images":2,"defined_names":10},"read":"whole","date_system":"1900"}

{"sheet":"TENDER COVER PAGE","index":0,"n_rows":39,"n_cols":2,"rows_kept":39}
[]
["ESKOM-NTCSA"]
["PROVISION OF HYDROCARBON SPILL MANAGEMENT & OIL DAM CLEANING SERVICES"]
["APOLLO AND CENTRALISED SERVICES"]
[]
["PRICING INFORMATION"]
[]
["ENQUIRY No."]
[]
["NAME OF PACKAGE:","PROVISION OF HYDROCARBON SPILL MANAGEMENT AND OIL DAM CLEANING SERVICES"]
[]
["TENDERER’S NAME:  "]
[]
["CATEGORY OF OFFER (MAIN/ALTERNATIVE OFFER):","Main Offer "]
[]
["TENDERED PRICE:  IN ZAR",{"$f":"'HYDROCARBON SPILL & OIL DAM CLE'!F99","v":{"v":0,"d":"  0  RAND"}}]
["(excluding VAT)"]
[]
["RAND VALUE IN WORDS","[Price in Words]"]
["(Including VAT)"]
[]
[]
[]
["TENDERED PRICE:  IN ZAR",{"$f":"Summary!E19","v":{"v":0,"d":"  0  RAND"}}]
["(including VAT)"]
[]
["DATE :"]
[]
[]
[]
["FULL NAMES OF SIGNATORY:"]
[]
[]
[]
["DESIGNATION OF SIGNATORY:"]
[]
[]
[]
["SIGNATURE :"]

{"sheet":"Preamble","index":1,"n_rows":54,"n_cols":2,"rows_kept":54}
[]
[null,"ESKOM-NTCSA"]
[null,"PROVISION OF HYDROCARBON SPILL MANAGEMENT AND OIL DAM CLEANING SERVICES"]
[null,"APOLLO AND CENTRALISED SERVICES"]
[]
[null,"Bill of Quantities"]
[]
[null,"PREAMBLES"]
[]
[1,"The Tenderer is advised to read and understand all aspects and documentation associated with this Enquiry BEFORE inserting his Prices and or Rates and or Amounts. "]
[]
[2,"The bill of quantities provides the basis of all  valuations of the work, price adjustment (CPA) and general progress monitoring. "]
[]
[3,"The amount due at each application for payment is based  as measured in terms of the bill of quantities. The Contractor provides all  necessary  information which is required to determine amounts due at each application for payment relative to the completed works"]
[]
[4,"The total of the prices includes for all direct and indirect costs, overheads, profits, on costs, risks, liabilities, obligations, etc. relative to the contract."]
[]
[5,"All values are total values prior to any retention and excludes VAT. Retention is not calculated in the  forecast rate of payment Bill (FRP). "]
[]
[6,"Tenderer to check and take responsibility for all descriptions, formulae and structure of this file."]
[]
[7,"The tenderer is expected to supply,deliver and offload  as per the scope of work and according to Eskom-NTCSA requirements"]
[]
[8,"Tempering with this BOQ is strictly prohibited"]
[]
["B","GUIDANCE BEFORE PRICING AND MEASURING "]
[]
["C","METHOD OF MEASUREMENT "]
[]
[null,"Tenderers shall price the items, taking account all of the information within and associated with the tender documents and shall include for all matters, which are at the Contractors risk."]
[]
[null,"All enquiry documents supplied must be considered for pricing the items in the Bills of Quantities for the completion of the works."]
[]
[null,"Unless otherwise stated, items are measured net in accordance with the contract drawings, and no allowance has been made for waste or bulking or compaction or evaporation or loss by any means whatsoever."]
[]
[null,"The quantities contained in the bill of quantities are provisional, and  shall not be used for ordering purposes. No claims whatsoever, however arising will be entertained, should the bill of quantities have been used for ordering and or procurement purposes. "]
[]
["D","RATES AND PRICES"]
[]
[null,"The tenderers must insert prices for all activities and calculate the prices thereof even in the event of a zero (NIL) quantity."]
[]
[null,"Blank/omitted/empty rates will be assumed to be zero (NIL) Rands i.e. R0.00"]
[]
[null,"Rates and Prices shall be expressed to two decimal places (i.e. cents) except in the case of a NIL rate or price."]
[]
[null,"The Tenderers Rates and Prices shall be inserted in the bill of quantities are deemed to be the fully inclusive Rates and Prices to the Employer for the work described under the several items. Such Rates and Prices shall cover all costs and expenses that may be required in, and for the prompt and efficient and safe execution of the work described, and shall cover the cost of all general risks, liabilities and obligations set  forth or implied in this Enquiry document."]
[]
[null,"Rates and Prices for items which are required to be inserted in the bill of quantities by the Tenderer and which have not been duly inserted, are deemed to be covered by other Rates and Prices in the bill of quantities. "]
[]
[null,"The Tenderers omission to insert Rates and Prices shall not be deemed to be a qualified exclusion to execute such work, activity or responsibility."]
[]
[null,"The Rates and Prices are deemed to include (unless otherwise specifically stated in the bill of quantities or herein) all the relevant costs associated with the Clauses of  Contract as amended and shall include but not be limited to the following cost components:"]
[]
[null," The Tenderer is deemed to have obtained all the necessary information required to adequately price the scope of work associated with this Enquiry and no claim shall be considered resulting from lack of knowledge in this respect."]

{"sheet":"Summary","index":2,"n_rows":27,"n_cols":5,"rows_kept":27,"merged":[[5,0,5,3],[7,1,7,3],[8,1,8,2],[9,1,9,2],[10,1,10,2]]}
[]
["ESKOM-NTCSA"]
[{"$f":"Preamble!B3","v":"PROVISION OF HYDROCARBON SPILL MANAGEMENT AND OIL DAM CLEANING SERVICES"}]
["APOLLO AND CENTRALISED SERVICES"]
[]
["FINAL SUMMARY"]
[]
["BILL","DESCRIPTION",null,null," AMOUNT"]
[1,"CLEAN-UP",null,null,{"$f":"'HYDROCARBON SPILL & OIL DAM CLE'!F37","v":0}]
[{"$f":"A9+1","v":2},"TRANSPORT",null,null,{"$f":"'HYDROCARBON SPILL & OIL DAM CLE'!F55","v":0}]
[{"$f":"A10+1","v":3},"CONTAINMENT",null,null,{"$f":"'HYDROCARBON SPILL & OIL DAM CLE'!F67","v":0}]
[4,"TESTING AND DISPOSAL",null,null,{"$f":"'HYDROCARBON SPILL & OIL DAM CLE'!F78","v":0}]
[5,"WASHING OF STONE",null,null,{"$f":"'HYDROCARBON SPILL & OIL DAM CLE'!F90","v":0}]
[6,"HEALTH & SAFETY",null,null,{"$f":"'HYDROCARBON SPILL & OIL DAM CLE'!F96","v":0}]
[null,"Sub-Total ",null,null,{"$f":"SUM(E9:E14)","v":0}]
["ADD","Contingency @ 10% (Solely for the use of the Client, and only on instruction to Contractor)",null,{"$f":"D15*E16","v":0}]
[null,"Subtotal 2",null,{"$f":"SUM(D15:D16)","v":0}]
["ADD","VAT @ 15%",null,null,{"$f":"+E15*15%","v":0}]
[null,"TOTAL CARRIED TO FORM OF OFFER",null,null,{"$f":"+E15+E18","v":0}]
[]
[]
[]
["……………………………….............",null,"…………………………………….."]
["SIGNATURE OF TENDERER",null,"DATE"]
[]
["…..................................................",null,"…................................................."]
["NAME OF TENDERER",null,"DESIGNATION"]

{"sheet":"HYDROCARBON SPILL & OIL DAM CLE","index":3,"n_rows":99,"n_cols":6,"rows_kept":99,"merged":[[4,0,4,1],[30,1,31,1],[30,3,31,3],[98,0,98,4],[99,0,99,5]]}
[]
[{"$f":"Summary!A2","v":"ESKOM-NTCSA"}]
[{"$f":"Summary!A3","v":"PROVISION OF HYDROCARBON SPILL MANAGEMENT AND OIL DAM CLEANING SERVICES"}]
["APOLLO AND CENTRALISED SERVICES"]
[]
["ITEM","DESCRIPTION","UNIT","QTY","RATE","AMOUNT"]
[]
[null,"PROVISION OF HYDROCARBON SPILL MANAGEMENT AND OIL DAM"]
[null,"CLEANING SERVICES"]
[]
[]
[1,"CLEAN-UP"]
[]
[]
[1.1,"Travelling Cost (R/KM)","km",40000,null,{"$f":"D15*E15","v":0}]
[]
[1.2,"Remove contaminated soil by manual labour","m³",{"v":1000,"d":"1,000"},null,{"$f":"D17*E17","v":0}]
[]
[1.3,"Surface cleaning and treatment","m²",{"v":2560,"d":"2,560"},null,0]
[]
[1.4,"Hard surface cleaning by high pressure washer","m²",{"v":2560,"d":"2,560"},null,0]
[]
[1.5,"Treating water in the oil dam using approved chemicals","Litre",{"v":75000,"d":"75,000"},null,0]
[]
[1.6,"Taking sample before discharging water into the environment","No.",50,null,0]
[]
[1.7,"Treatment of hydrocarbon contaminated sludge","Litre",{"v":5000,"d":"5,000"},null,0]
[]
[1.8,"Treatment and cleaning of oil dam walls and pipe outlets (after emptying and pumping out sludge)","m²",{"v":6000,"d":"6,000"},null,0]
[]
[null,"Disposal of hydrocarbon contaminated sludge/soil","210l",280,null,{"$f":"D31*E31","v":0}]
[1.9,null,"drum"]
[]
[{"v":1.1,"d":"1.10"},"Drainage of sewage waste from septic tank","Litre",7000000,null,{"$f":"D34*E34","v":0}]
[]
[1.11,"Disposal of sewage waste to a registered landfill site","Litre",7000000,null,{"$f":"D36*E36","v":0}]
[null,"SUBTOTAL",{"$nulls":3},{"$f":"SUM(F14:F36)","v":0}]
[]
[2,"Transport"]
[]
[2.1,"Light Delivery Vehicle (LDV)","km",{"v":40000,"d":"40,000"},null,{"$f":"D41*E41","v":0}]
[]
[2.2,"Delivery Vehicle (Truck)","km",{"v":40000,"d":"40,000"},null,{"$f":"D43*E43","v":0}]
[]
[2.3,"Skip truck single unit (6 m³ skip)","km",{"v":40000,"d":"40,000"},null,0]
[]
[2.4,"Skip trailer combo unit (6 m³ skip)","km",{"v":40000,"d":"40,000"},null,0]
[]
[2.5,"Super sucker","km",{"v":40000,"d":"40,000"},null,0]
[]
[2.6,"Tanker","km",{"v":12000,"d":"12,000"},null,0]
[]
[2.7,"Tractor loader backhoe (TLB)","km",{"v":40000,"d":"40,000"},null,0]
[]
[null,"SUBTOTAL",{"$nulls":3},{"$f":"SUM(F41:F54)","v":0}]
[]
[3,"Containment"]
[]
[3.1,"Absorbent material loose","kg",{"v":7000,"d":"7,000"},null,{"$f":"D59*E59","v":0}]
[]
[3.2,"Absorbent pads (200g)","ea",{"v":3200,"d":"3,200"},null,{"$f":"D61*E61","v":0}]
[]
[3.3,"Absorbent booms (2m)","ea",192,null,{"$f":"D63*E63","v":0}]
[]
[3.4,"Portable heavy duty absorbent mat","M",16,null,{"$f":"D65*E65","v":0}]
[]
[null,"SUBTOTAL",{"$nulls":3},{"$f":"SUM(F58:F66)","v":0}]
[]
[]
[4,"Testing & Disposal"]
[]
[]
[4.1,"Total Petroleum Hydrocarbon (TPH) analysis","Per sample",50,null,{"$f":"D73*E73","v":0}]
[4.2,"Battery Acid (Packaging included)","210 Lt drum",7,null,{"$f":"D74*E74","v":0}]
[]
[4.3,"Battery Acid (Packaging included)","50 Lt",32,null,{"$f":"D76*E76","v":0}]
[]
[null,"SUBTOTAL",{"$nulls":3},{"$f":"SUM(F72:F77)","v":0}]
[]
[5,"Washing of Stone"]
[]
[5.1,"Place stone","m³",320,null,{"$f":"D82*E82","v":0}]
[]
[5.2,"Remove stone 1 x 5 done by spade","m³",320,null,{"$f":"D84*E84","v":0}]
[]
[5.3,"Wash in mixer","m³",320,null,0]
[]
[5.4,"Chemicals and environmental degreaser","litre",{"v":6400,"d":"6,400"},null,0]
[]
[null,"SUBTOTAL",{"$nulls":3},{"$f":"SUM(F80:F89)","v":0}]
[]
[6,"Safety"]
[]
[6.1,"SHEQ File","Sum",1,null,{"$f":"D94*E94","v":0}]
[]
[null,"SUBTOTAL",{"$nulls":3},{"$f":"SUM(F92:F95)","v":0}]
[]
[]
["PROVISION OF HYROCARBON SPILL MANAGEMENT AND OIL DAM CLEANING SERVICES",{"$nulls":4},{"$f":"F37+F55+F67+F78+F90+F96","v":0}]